Cogmind - Beta 10.2 @@@ ROGUE MODE // 2021.12.20 @ 13:47:42 Player: Dytto Result: Destroyed by B-75 Beast with Heavy Plasma Cannon Performance ------------- Evolutions (2) 1000 Regions Visited (6) 1200 Robots Destroyed (15) 75 Value Destroyed (365) 365 Prototype IDs (25) 500 Alien Tech Used (0) 0 Bonus (500) 500 TOTAL SCORE: 3640 Bonus ------- Entered Garrisons 200 Aligned with FarCom 300 Cogmind --------- Core Integrity 0/550 Matter 192/300 Energy 100/100 System Corruption 0% Temperature Cool (21) Movement Core (350) Ox6 Location -8/Garrison Parts ------- > --- POWER (2) -------- (None) > --- PROPULSION (2) --- (None) > --- UTILITY (4) ------ Large Storage Unit Targeting Computer > --- WEAPON (3) ------- Makeshift Axe > --- INVENTORY (10) --- Deuterium Engine Advanced Weight Redist. System Advanced Terrain Scanner Core Analyzer Actuator Array Improved ECM Suite Light Armor Plating Shock Absorption System Trap Reconfigurator Peak State ------------ > --- POWER ------------ Backup Power I Light Deuterium Engine > --- PROPULSION ------- Armored Wheel Armored Wheel > --- UTILITY ---------- Large Storage Unit Advanced Weight Redist. System Targeting Computer Insulated Plating > --- WEAPON ----------- Flak Cannon Rocket Launcher Makeshift Axe > --- INVENTORY -------- Medium Storage Unit Advanced Terrain Scanner Actuator Array Improved ECM Suite Light Armor Plating Trap Reconfigurator Heavy Particle Cannon Light Cannon Flak Cannon Scythe [Rating: 28] Favorites ----------- Power Ion Engine Engine Ion Engine Propulsion Wheel Wheel Wheel Utility Targeting Computer Device Advanced Weight Redist. System Storage Medium Storage Unit Processor Targeting Computer Protection Insulated Plating Weapon Makeshift Axe Energy Gun Small Laser Energy Cannon Heavy Particle Cannon Ballistic Gun Light Assault Rifle Ballistic Cannon Flak Cannon Launcher Rocket Launcher Slashing Weapon Makeshift Axe Build | -11 -10 -10 -10 -9 -8 -8 ------- Run | Scr Mat Min Exi Min Mat Gar Slots Evolved 4 | . . . . . 4 . Power 1 | . . . . . 1 . Propulsion . | . . . . . . . Utility 2 | . . . . . 2 . Weapon 1 | . . . . . 1 . Parts Attached 30 | 6 4 6 3 1 8 2 Power 5 | 1 1 1 1 . 1 . Engine 5 | 1 1 1 1 . 1 . Core . | . . . . . . . Reactor . | . . . . . . . Propulsion 6 | 2 . 2 . . 2 . Treads . | . . . . . . . Leg . | . . . . . . . Wheel 6 | 2 . 2 . . 2 . Hover . | . . . . . . . Flight . | . . . . . . . Utility 7 | 1 1 1 1 . 3 . Device 1 | . . . . . 1 . Storage 4 | 1 1 . 1 . 1 . Processor 1 | . . 1 . . . . Hackware . | . . . . . . . Protection 1 | . . . . . 1 . Artifact . | . . . . . . . Weapon 12 | 2 2 2 1 1 2 2 Energy Gun 5 | 2 2 . 1 . . . Energy Cannon 1 | . . . . . . 1 Ballistic Gun 1 | . . 1 . . . . Ballistic Cannon 3 | . . . . . 2 1 Launcher 1 | . . . . 1 . . Special Weapon . | . . . . . . . Impact Weapon . | . . . . . . . Slashing Weapon 1 | . . 1 . . . . Piercing Weapon . | . . . . . . . Special Melee Weapon . | . . . . . . . Unidentified Prototypes . | . . . . . . . Parts Lost 14 | . . 5 . . . 9 Power 3 | . . 1 . . . 2 Propulsion 4 | . . 2 . . . 2 Utility 1 | . . . . . . 1 Weapon 6 | . . 2 . . . 4 Highest Loss Streak 6 | . . 4 . . . 6 Average Slot Usage (%) 94 | . 91 78 99 100 99 96 Engine 15 | . 14 13 13 14 17 17 Wheel 20 | . 28 9 28 28 18 17 Device 3 | . . . . . 9 8 Storage 12 | . 19 15 14 14 9 9 Processor 10 | . . 12 14 14 9 9 Protection 3 | . . . . . 9 8 Energy Gun 5 | . 28 6 1 12 . . Ballistic Gun 3 | . . 10 12 . . . Ballistic Cannon 3 | . . . . . 9 8 Launcher 3 | . . . . 1 9 8 Slashing Weapon 10 | . . 9 14 14 9 9 Naked Turns . | . . . . . . . Heaviest Build 38 | 11 14 14 17 20 38 38 Greatest Support 33 | 16 16 20 20 20 33 33 Greatest Overweight (x) 8 | 3 . 4 . . 2 8 Average Overweight (x) . | 1 . 1 . . . . Largest Inventory Capacity 10 | 6 6 6 8 8 10 10 Average Capacity 8 | 5 6 6 7 8 9 10 Most Carried 10 | 2 6 6 8 8 10 10 Average Carried 7 | 1 4 5 6 7 8 9 Final Capacity 10 | 6 6 6 8 8 10 10 Final Carried 10 | 2 6 6 6 8 10 9 Class Distribution -------------------- 100% | Mutant Dominant Class ---------------- Mutant | -10/Materials Mutant | -10/Mines Mutant | -10/Exiles Mutant | -9/Mines Mutant | -8/Materials Mutant | -8/Garrison Resources | -11 -10 -10 -10 -9 -8 -8 ----------- Run | Scr Mat Min Exi Min Mat Gar Matter Collected 673 | 248 74 176 . 83 40 52 Remotely . | . . . . . . . Salvage Created 442 | . . 118 . 101 . 223 Parts 26 | . . 10 . 5 . 11 Haulers Intercepted . | . . . . . . . Recyclers Shooed . | . . . . . . . Parts Field Recycled . | . . . . . . . Retrieved Matter . | . . . . . . . Parts Self-Destructed . | . . . . . . . Prevented . | . . . . . . . Kills | -11 -10 -10 -10 -9 -8 -8 ------- Run | Scr Mat Min Exi Min Mat Gar Combat Hostiles Destroyed 13 | . . 4 . 4 . 5 Melee 3 | . . 2 . . . 1 Guns 1 | . . 1 . . . . Cannons 4 | . . . . . . 4 AOE 4 | . . . . 4 . . Classes Destroyed 5 | . . 3 . 1 . 1 Worker 1 | . . 1 . . . . Recycler 1 | . . . . 1 . . Swarmer 7 | . . 3 . 4 . . Grunt 4 | . . 1 . . . 3 Sentry 2 | . . . . . . 2 Best Kill Streak 4 | . . 2 . 4 . 4 Combat Bots Only 4 | . . 2 . 4 . 4 Max Kills in Single Turn 3 | . . 1 . 3 . 1 Gunslinging . | . . . . . . . Exploded 3 | . . . . 3 . . Melee 1 | . . 1 . . . 1 Uniques/NPCs Destroyed . | . . . . . . . Combat | -11 -10 -10 -10 -9 -8 -8 -------- Run | Scr Mat Min Exi Min Mat Gar Damage Taken 1933 | . . 349 . 18 . 1566 Core 664 | . . 96 . 8 . 560 Absorbed by Shields 23 | . . . . . . 23 Core Remaining (%) 79 | 100 . . . 58 . . Volleys Fired 33 | . . 16 . 3 . 14 Largest 2 | . . 1 . 1 . 2 Hottest 119 | . . 40 . 33 . 119 Shots Fired 44 | . . 16 . 3 . 25 Gun 16 | . . 16 . . . . Cannon 25 | . . . . . . 25 Launcher 3 | . . . . 3 . . Special . | . . . . . . . Kinetic 17 | . . 3 . . . 14 Thermal 11 | . . . . . . 11 Explosive 3 | . . . . 3 . . Electromagnetic 13 | . . 13 . . . . Robot Hit Streak 7 | . . 3 . 3 . 7 Robot Miss Streak 5 | . . 2 . . . 5 Penetration Max . | . . . . . . . Secondary Targets . | . . . . . . . Shots Hit Robots 47 | . . 17 . 5 . 25 Core Hits 30 | . . 8 . 5 . 17 Critical Hits 1 | . . . . 1 . . Critical Kills . | . . . . . . . Critical Parts Destroyed 1 | . . . . 1 . . Melee Attacks 22 | . . 9 . 3 . 10 Impact . | . . . . . . . Slashing 22 | . . 9 . 3 . 10 Piercing . | . . . . . . . Sneak Attacks 3 | . . 1 . 2 . . Combat Hostiles . | . . . . . . . Follow-up Attacks . | . . . . . . . Damage Inflicted 1746 | . . 471 . 542 . 733 Guns 118 | . . 118 . . . . Cannons 486 | . . . . . . 486 Explosions 282 | . . . . 282 . . Melee 852 | . . 345 . 260 . 247 Ramming 8 | . . 8 . . . . Kinetic 294 | . . 8 . . . 286 Thermal 200 | . . . . . . 200 Explosive 282 | . . . . 282 . . Electromagnetic 110 | . . 110 . . . . Impact . | . . . . . . . Slashing 852 | . . 345 . 260 . 247 Piercing . | . . . . . . . Highest Corruption . | . . . . . . . Average Corruption . | . . . . . . . Corruption Purged . | . . . . . . . Overload Shots . | . . . . . . . Overflow Damage 141 | . . 28 . 113 . . Projectiles . | . . . . . . . Explosions 11 | . . . . 11 . . Melee 130 | . . 28 . 102 . . Knockbacks 2 | . . . . . . 2 Impact . | . . . . . . . Kinetic 2 | . . . . . . 2 Secondary . | . . . . . . . Self-Inflicted Damage 3 | . . 3 . . . . Shots . | . . . . . . . Rammed 6 | . . 6 . . . . Targets Rammed 6 | . . 6 . . . . Kicked . | . . . . . . . Crushed . | . . . . . . . Highest Temperature 543 | . . . . . . 543 Average Temperature 247 | . . . . . . 247 Received Heat Transfer 510 | . . 63 . . . 447 Effects 10 | . . . . . . 10 Shutdowns 2 | . . . . . . 2 Energy Bleed 3 | . . . . . . 3 Matter Decay 1 | . . . . . . 1 Short Circuit 2 | . . . . . . 2 Damage (minor) 1 | . . . . . . 1 Damage (major) 1 | . . . . . . 1 Siege Activations . | . . . . . . . Robots Corrupted 1 | . . 1 . . . . Combat Hostiles 1 | . . 1 . . . . Parts Fried 1 | . . 1 . . . . Impact Corruptions . | . . . . . . . Robots Melted . | . . . . . . . Combat Hostiles . | . . . . . . . Parts Melted . | . . . . . . . Heat Transferred 296 | . . . . . . 296 Parts Sabotaged . | . . . . . . . Parts Stolen . | . . . . . . . Parts Stripped . | . . . . . . . Power Chain Reactions . | . . . . . . . Missiles Intercepted . | . . . . . . . Alert | -11 -10 -10 -10 -9 -8 -8 ------- Run | Scr Mat Min Exi Min Mat Gar Peak Influence 448 | . 30 91 . 110 79 448 Initial 42 | . . 11 . . 42 3 Average 65 | . 20 17 . 9 36 169 Maximum Alert Level 2 | . . . . . . 2 Low Security (%) 87 | 100 100 100 . 100 100 58 Level 1 12 | . . . . . . 40 Level 2 . | . . . . . . . Level 3 . | . . . . . . . Level 4 . | . . . . . . . Level 5 . | . . . . . . . High Security . | . . . . . . . Max Security . | . . . . . . . Squads Dispatched 1 | . . 1 . . . . Investigation 1 | . . 1 . . . . Extermination . | . . . . . . . Reinforcement . | . . . . . . . Assault . | . . . . . . . Garrison . | . . . . . . . Intercept . | . . . . . . . Construction Impeded . | . . . . . . . Haulers Reinforced . | . . . . . . . Stealth | -11 -10 -10 -10 -9 -8 -8 --------- Run | Scr Mat Min Exi Min Mat Gar Distress Signals . | . . . . . . . Communications Jammed . | . . . . . . . Distress Signals . | . . . . . . . Times Spotted 29 | . 2 6 . 2 2 17 Peak Tracking Total 10 | . 1 3 . 4 1 10 Tactical Retreats 5 | . . 2 . . . 3 Traps | -11 -10 -10 -10 -9 -8 -8 ------- Run | Scr Mat Min Exi Min Mat Gar Traps Triggered 3 | . 1 . . . . 2 Indirectly . | . . . . . . . Trap Hack Attempts . | . . . . . . . Triggered . | . . . . . . . Disarmed . | . . . . . . . Reprogrammed . | . . . . . . . Reused . | . . . . . . . Traps Extracted . | . . . . . . . Installed . | . . . . . . . Triggered . | . . . . . . . Machines | -11 -10 -10 -10 -9 -8 -8 ---------- Run | Scr Mat Min Exi Min Mat Gar Machines Disabled 1 | . . . . 1 . . Max in Single Turn 1 | . . . . 1 . . Machines Sabotaged . | . . . . . . . Garrisons Compromised . | . . . . . . . Overloaded Fab Kills . | . . . . . . . Fab Network Shutdowns . | . . . . . . . Hacking | -11 -10 -10 -10 -9 -8 -8 --------- Run | Scr Mat Min Exi Min Mat Gar Machines Accessed 13 | . . 1 5 . 7 . Terminals 3 | . . . . . 3 . Fabricators . | . . . . . . . Repair Stations 2 | . . . . . 2 . Recycling Units . | . . . . . . . Scanalyzers 1 | . . . . . 1 . Garrison Access 1 | . . . . . 1 . Total Hacks 66 | . . 1 50 . 15 . Successful 64 | . . 1 50 . 13 . Failed 2 | . . . . . 2 . Catastrophic . | . . . . . . . Database Lockouts . | . . . . . . . Manual 6 | . . 3 3 . . . Terminals 6 | . . . . . 6 . Fabricators . | . . . . . . . Repair Stations 5 | . . . . . 5 . Recycling Units . | . . . . . . . Scanalyzers 2 | . . . . . 2 . Garrison Access 2 | . . . . . 2 . Terminal Hacks 57 | . . 1 50 . 6 . Record 51 | . . . 49 . 2 . Prototype ID Bank 1 | . . . . . 1 . Open Door 1 | . . 1 . . . . Branch Access Points 1 | . . . . . 1 . Dispatch Records 1 | . . . . . 1 . Hauler Manifests 1 | . . . . . 1 . EX-Prototype ID Bank 1 | . . . 1 . . . Fabricator Hacks . | . . . . . . . Repair Station Hacks 4 | . . . . . 4 . Scan Component 2 | . . . . . 2 . Repair 1 | . . . . . 1 . Refit 1 | . . . . . 1 . Recycling Unit Hacks . | . . . . . . . Scanalyzer 2 | . . . . . 2 . Insert Component 1 | . . . . . 1 . Analyze 1 | . . . . . 1 . Garrison Access Hacks 1 | . . . . . 1 . Unlock Access 1 | . . . . . 1 . Unauthorized Hacks . | . . . . . . . Terminals . | . . . . . . . Fabricators . | . . . . . . . Repair Stations . | . . . . . . . Recycling Units . | . . . . . . . Scanalyzers . | . . . . . . . Garrison Access . | . . . . . . . Data Cores Recovered . | . . . . . . . Used . | . . . . . . . Hacking Detections 4 | . . 1 . . 3 . Full Trace Events 1 | . . . . . 1 . Feedback Events . | . . . . . . . Feedback Blocked . | . . . . . . . Robot Schematics Acquired . | . . . . . . . Robots Built . | . . . . . . . Matter . | . . . . . . . Time . | . . . . . . . Total Robot Build Rating . | . . . . . . . Part Schematics Acquired 1 | . . . . . 1 . Parts Built . | . . . . . . . Matter . | . . . . . . . Time . | . . . . . . . Total Part Build Rating . | . . . . . . . Parts Repaired 1 | . . . . . 1 . Time 26 | . . . . . 26 . Parts Recycled . | . . . . . . . Recycled Matter . | . . . . . . . Retrieved Matter . | . . . . . . . Retrieved Components . | . . . . . . . Parts Scanalyzed 1 | . . . . . 1 . Part Schematics Acquired 1 | . . . . . 1 . Parts Damaged . | . . . . . . . Bothacking | -11 -10 -10 -10 -9 -8 -8 ------------ Run | Scr Mat Min Exi Min Mat Gar Used RIF Installer . | . . . . . . . Robots Hacked . | . . . . . . . Non-combat . | . . . . . . . Combat . | . . . . . . . Robot Hacks Applied . | . . . . . . . Relay Couplers Released . | . . . . . . . Robots Rewired . | . . . . . . . Allies Hacked . | . . . . . . . Hacks Repelled . | . . . . . . . Allies | -11 -10 -10 -10 -9 -8 -8 -------- Run | Scr Mat Min Exi Min Mat Gar Total Allies . | . . . . . . . Largest Group . | . . . . . . . Highest-Rated Group . | . . . . . . . Highest-Rated Ally . | . . . . . . . Total Orders . | . . . . . . . Ally Attacks . | . . . . . . . Total Damage . | . . . . . . . Kills . | . . . . . . . Allies Corrupted . | . . . . . . . Allies Melted . | . . . . . . . Intel | -11 -10 -10 -10 -9 -8 -8 ------- Run | Scr Mat Min Exi Min Mat Gar Robot Analysis Total . | . . . . . . . Derelict Logs Recovered 2 | . . 1 . 1 . . Drone Launches . | . . . . . . . Drone Recoveries . | . . . . . . . Exploration | -11 -10 -10 -10 -9 -8 -8 ------------- Run | Scr Mat Min Exi Min Mat Gar Turns Passed 4507 | 59 307 788 531 974 623 1225 Spaces Moved 2755 | 35 274 422 638 625 315 446 Core 208 | 23 . 180 . . 1 4 Treads . | . . . . . . . Legs . | . . . . . . . Wheels 2547 | 12 274 242 638 625 314 442 Hover . | . . . . . . . Flight . | . . . . . . . Fastest Speed 50 | 50 100 80 80 80 80 90 Average Speed 99 | 137 100 157 80 80 94 101 Slowest Speed 450 | 200 100 250 80 80 150 450 Overloaded Moves . | . . . . . . . Propulsion Burnouts . | . . . . . . . Robots Hopped . | . . . . . . . Cave-ins Triggered . | . . . . . . . Exploration Rate (%) 48 | 4 35 48 93 101 18 43 Regions Visited 6 Branch Regions 3 Pre-discovered Areas 1 | . . . 1 . . . Known Exits Taken 1 | . . . . . 1 . Unknown Exits Taken 5 | 1 1 1 1 1 . . Scrap Searched 3 | . . 1 . 2 . . Spaces Dug . | . . . . . . . Terrain Destroyed 26 | . . . . 26 . . Melee . | . . . . . . . Projectile . | . . . . . . . AOE 26 | . . . . 26 . . Terrain Rammed . | . . . . . . . Walls Destroyed . | . . . . . . . Machines Disabled . | . . . . . . . Actions | -11 -10 -10 -10 -9 -8 -8 --------- Run | Scr Mat Min Exi Min Mat Gar Total 4445 | 43 305 519 661 1092 642 1183 Wait 1539 | 1 24 53 4 457 301 699 Move 2747 | 34 273 421 637 624 314 444 Hop . | . . . . . . . Pick Up 35 | 2 4 4 8 3 11 3 Fast Attach 19 | 6 4 5 1 . 3 . Attach 6 | . . 1 . . 3 2 Detach 1 | . . . . . . 1 Swap 5 | . . . 2 1 2 . Drop 25 | . . 4 9 1 8 3 Fire 33 | . . 16 . 3 . 14 Melee 22 | . . 9 . 3 . 10 Ram 6 | . . 6 . . . . Kick . | . . . . . . . Crush . | . . . . . . . Escape Stasis 7 | . . . . . . 7 Rewire . | . . . . . . . Trap . | . . . . . . . Miscellaneous . | . . . . . . . Route ------- -11/Scrapyard -10/Materials -10/Mines (discovered 3 exits: [*Mat x2] / *Exi) -10/Exiles (discovered 2 exits: [*Min x2]) -9/Mines (discovered 2 exits: *Mat x2) -8/Materials (discovered 2 exits: Fac / Gar) -8/Garrison (discovered 1 exit: [*Mat]) History --------- Turn | Location | Event 31 | -11/Scrapyard | Discovered new exit (range 15) 60 | -11/Scrapyard | Entered Materials 177 | -10/Materials | Met 8R-AWN 244 | -10/Materials | Discovered new exit (range 9) 318 | -10/Materials | Build established: Mutant 367 | -10/Materials | Entered Mines 368 | -10/Mines | Followed 8R-AWN into the Mines 385 | -10/Mines | Discovered new exit (range 8) 462 | -10/Mines | Discovered new exit (range 5) 578 | -10/Mines | Lost 4 parts (1p1n2w) 619 | -10/Mines | Received a Rocket Launcher from a helpful Derelict 620 | -10/Mines | A weapon hastily lodged in a ceiling crevice suddenly fell to the ground 760 | -10/Mines | Met a Derelict shopkeep closing up shop 870 | -10/Mines | Discovered new exit (range 11) 1155 | -10/Mines | Entered Exiles 1173 | -10/Exiles | Discovered new exit (range 15) 1215 | -10/Exiles | Welcomed by 8R-AWN 1230 | -10/Exiles | Met EX-HEX 1307 | -10/Exiles | Visited The Gauntlet 1383 | -10/Exiles | Met EX-DEC 1403 | -10/Exiles | Learned location of Zion (-7) 1453 | -10/Exiles | Discovered new exit (range 11) 1520 | -10/Exiles | Met EX-BIN 1536 | -10/Exiles | Aligned with FarCom system 1536 | -10/Exiles | Given EX-Vault access code 1574 | -10/Exiles | Opened EX-Vault 1577 | -10/Exiles | Found Prototype Device 1582 | -10/Exiles | Identified Trap Reconfigurator 1588 | -10/Exiles | Found Chronowheel 1599 | -10/Exiles | Found PSU Rigger 1627 | -10/Exiles | Warned to stay clear of 0b10 Research branches 1686 | -10/Exiles | Left Exiles lab with Trap Reconfigurator 1686 | -10/Exiles | Entered Mines 1686 | -9/Mines | Learned location of 1 exit from Materials 1847 | -9/Mines | Discovered new exit (range 11) 2576 | -9/Mines | Discovered new exit (range 8) 2660 | -9/Mines | Entered Materials 2660 | -8/Materials | Evolved 4 slots: Power x1, Utility x2, Weapon x1 2661 | -8/Materials | Identified exit to Factory 3102 | -8/Materials | Repaired Lgt. Armor Plating 3281 | -8/Materials | Identified exit to Garrison 3283 | -8/Materials | Entered Garrison 3466 | -8/Garrison | Triggered checkpoint 4260 | -8/Garrison | Spotted B-75 Beast 4354 | -8/Garrison | Triggered checkpoint 4423 | -8/Garrison | Discovered new exit (range 10) 4431 | -8/Garrison | Attempted to access garrison exit controls, blocked by remote lockdown 4432 | -8/Garrison | Lost 3 parts (1u2w) 4489 | -8/Garrison | Core integrity fell below 50% 4498 | -8/Garrison | Core integrity fell below 20% 4508 | -8/Garrison | Destroyed by B-75 Beast with Heavy Plasma Cannon Last Messages --------------- 04458_ Overheating: Short circuit. 04458_ G-47 Trooper destroyed. 04461_ Power failure, Backup Power I shutdown. 04462_ Overheating: Energy bleed (-20). 04463_ Overheating: Targeting Computer damaged (-3). 04464_ Overheating: Energy bleed (-18). 04466_ Flak Cannon permanently disabled. 04466_ Overheating: Short circuit. 04467_ Overheating: Energy bleed (-8). 04468_ Power failure, Backup Power I shutdown. 04468_ Overheating: Hvy. Particle Cannon damaged (-10). 04470_ Hvy. Particle Cannon destroyed. 04471_ Broken Arm. Wheel destroyed. 04472_ G-47 Trooper destroyed. 04473_ Arm. Wheel destroyed. 04473_ Knocked back. 04482_ Broken Flak Cannon destroyed. 04485_ Backup Power I destroyed. 04497_ Knocked back. 04500_ ALERT: Garrison interior compromised. Map ----- +----------------------------------------------------+ | | | | | | | | | ?????????????????????????????????????????????????? | | ?????????????????????????????????????????????????? | | ?????????????????????????????????????????????????? | | ?????????????????????????????????????????????????? | | ?????????????????????????????????????????????????? | | ?????????????????????????????????????????????????? | | ?????????????????????????????????????????????????? | | ?????????????????????????????????????????????????? | | ?????????????????????????????????????????????????? | | ?????????????????????????????????????????????????? | | ?????????????????????????????????????????????????? | | ???????????????????????????????????????????###???? | | ??????????????????????????????????????????? #???? | | ????????????????????????????????????????### #???? | | ????????????????????????????????????????? #???? | | ????????????????????????????????????????? ????? | | ???????????????????????????????########### #?????? | | ????????? ????#####?????????# + #?????? | | ??????????" ## #######???# ######### #?????? | | ????????????? h+ < ##dddd#####;#???????# #?????? | | ?????????????????# BB* %%%* #???????# #?????? | | ?????????????????# BB =@[Y%[ #???????# #?????? | | ?????????????????############## #???????# #?????? | | ??????????????????????????????# #???????# #?????? | | ???????????????g??????????????# #???????# #?????? | | ??????????????????????????????# #???????# #?????? | | ??????????????????????????????# #???????# #?????? | | ?????????????????????????????? #???????# #?????? | | ??????????????????????????????# #???????# #?????? | | ??????????????????????????????# #???????# #?????? | | ??????????????????????????????# #???????# #?????? | | ??????????????????????????????# #???????# #?????? | | ????????????????????????####### ######### #?????? | | ????????????????????????# #?????? | | ??????????????????????????????# #?????? | | ??????????????????????????????# ######## #?????? | | ??????????????????????????????# #??????# #?????? | | ??????????????????????????????# #??????# #?????? | | ??????????????????????????????# #??????+ "?????? | | ??????????????????ggg?????????# #??????# #?????? | | ??????????????????????????????# #??????# #?????? | | ??????????????????????????????# #??????#" #?????? | | ??????????????????????????????# #?????##%"##""""# | | ??????????????????????????????# ####### " | | ??????????????????????????????# | | ??????????????????????????????# | +----------------------------------------------------+ Best States ------------- Heat Dissipation 31 Energy Generation 18 Energy Capacity 250 Matter Stores 450 Matter Capacity 450 Sight Range 16 Terrain Scan Density 10 Additional Mass Support 9 Armor Coverage 150 Resistance: EM 15 Evasion (%) 50 Targeting Accuracy 5 Item Schematics ----------------- Lgt. Armor Plating | -8/Materials | Scanalyzed Robot Schematics ------------------ None Fabricated ------------ Nothing Alien Tech Used ----------------- None Achievements -------------- None Challenges ------------ None Game ------ Seed BehemothNuclearThrusters Manual? 0 Play Time 00:51:51 Cumulative 12.3 hours Start 2021.12.14 @ 21:49:04 End 2021.12.20 @ 13:47:42 Sessions 7 Manual Loads 0 Difficulty Rogue Special Mode None Game No. 37 Rogue 1 Adventurer 36 Explorer 0 Win Type - Total 0 Types 0/0/0/0/0/0/0/0/0 Lore% 15 Gallery% 18 Achievement% 12 Wizard Run 0 Options --------- ASCII 0 Keyboard 1 Movement Numpad Keybinds 0 Fullscreen 2 Font 18/X11Bold Map View 76x50 Tactical HUD 1 Map Filters NONE Filters NONE Steam 1 RUN: 8c424e78-8329-4619-8633-866cb886dc9a